bitfinex-derivatives/quotes_ETHF0:USTF0_20210402
["timestamp","ask_amount","ask_price","bid_price","bid_amount"]
[1617344304584,0.70298306,1995.0,1994.7,2.90695]
[1617344304985,0.70298416,1994.9,1994.7,2.90695]
[1617344305985,0.70298159,1995.0,1994.7,2.90695]
[1617344306587,0.70298159,1995.0,1994.9,2.90695]
[1617344306788,0.70298159,1995.0,1994.9,4.48875]
[1617344307788,3.60988664,1995.1,1994.9,4.48875]
[1617344309894,0.7029536,1995.0,1994.9,4.48875]
[1617344312100,2.90695,1995.1,1994.9,4.48875]
[1617344313997,3.84462789,1995.1,1994.9,4.48875]
[1617344316595,0.70325002,1995.0,1994.9,4.48875]
[1617344318798,3.84461646,1995.1,1994.9,4.48875]
[1617344319304,3.84461646,1995.1,1994.9,2.90695]
[1617344321709,1.17425324,1995.0,1994.9,2.90695]
[1617344323509,4.0807815,1995.1,1994.9,2.90695]
[1617344328318,4.0807815,1995.1,1994.9,3.90685]
[1617344328516,4.0807815,1995.1,1994.9,2.90695]
[1617344332421,1.17413972,1995.0,1994.9,2.90695]
[1617344333521,2.90695,1995.1,1994.9,2.90695]
[1617344333522,4.08109145,1995.1,1994.9,2.90695]
[1617344333720,4.08109145,1995.1,1994.9,4.87295]
[1617344343232,1.17462114,1995.0,1994.9,4.87295]
[1617344344635,1.17462114,1995.0,1994.9,2.90695]
[1617344346439,4.08166137,1995.1,1994.9,2.90695]
[1617344348538,1.1746979,1995.0,1994.9,2.90695]
[1617344354245,5.85193162,1995.1,1994.9,2.90695]
[1617344355546,2.944182,1995.0,1994.9,2.90695]
[1617344356146,7.02853768,1995.1,1994.9,2.90695]
[1617344358447,2.94495126,1995.0,1994.9,2.90695]
[1617344358647,7.02790653,1995.1,1994.9,2.90695]
[1617344360756,8.02550653,1995.1,1994.9,2.90695]
[1617344360957,7.02790653,1995.1,1994.9,2.90695]
[1617344361356,4.12046837,1995.0,1994.9,2.90695]
[1617344363062,7.02778998,1995.1,1994.9,2.90695]
[1617344363561,4.12067236,1995.0,1994.7,61.5175]
[1617344363761,5.46057236,1995.0,1993.7,30.0]
[1617344363962,60.8416,1994.8,1993.7,60.8416]
[1617344364162,0.94099705,1994.1,1993.7,60.8416]
[1617344364362,0.70574779,1993.9,1993.7,60.8416]
[1617344364963,0.70574779,1993.9,1993.8,2.90695]
[1617344366369,1.17723817,1994.0,1993.8,2.90695]
[1617344366569,0.88644243,1993.9,1993.8,2.90695]
[1617344366969,1.17723817,1994.0,1993.8,2.90695]
[1617344367569,0.94188704,1993.9,1993.8,2.90695]
[1617344367969,0.88644259,1993.9,1993.8,2.90695]
[1617344368271,0.9420806,1993.9,1993.8,2.90695]
[1617344368970,0.9420806,1993.9,1993.8,32.90695]
[1617344371672,0.9420806,1993.9,1993.8,2.90695]
[1617344372073,1.17847704,1994.0,1993.8,2.90695]
[1617344372477,0.88645082,1993.9,1993.8,2.90695]
[1617344372876,1.17847704,1994.0,1993.8,2.90695]
[1617344373979,0.94277982,1993.9,1993.8,2.90695]
[1617344374278,1.17847637,1994.0,1993.8,2.90695]
[1617344377681,0.94277331,1993.9,1993.8,2.90695]
[1617344378481,1.17846603,1994.0,1993.8,2.90695]
[1617344378881,0.88644509,1993.9,1993.8,2.90695]
[1617344379083,1.17846603,1994.0,1993.8,2.90695]
[1617344383693,1.17846603,1994.0,1993.8,4.90695]
[1617344384693,1.17846603,1994.0,1993.8,2.90695]
[1617344386897,1.17846603,1994.0,1993.8,4.90695]
[1617344387097,1.17846603,1994.0,1993.8,2.90695]
[1617344389001,1.17883986,1993.9,1993.8,2.90695]
[1617344389400,2.06529948,1993.9,1993.8,2.90695]
[1617344389802,1.17883986,1993.9,1993.8,2.90695]
[1617344390601,1.17847552,1994.0,1993.8,2.90695]
[1617344390802,1.17847552,1994.0,1993.9,83.8696]
[1617344398010,1.17821615,1994.1,1993.9,83.8696]
[1617344399212,1.17821615,1994.1,1994.0,2.90695]
[1617344403721,11.58436739,1994.6,1994.0,2.90695]
[1617344403722,1.17811225,1994.2,1994.0,2.90695]
[1617344406119,0.94246366,1994.1,1994.0,2.90695]
[1617344406517,1.17809056,1994.2,1994.0,2.90695]
[1617344407119,1.17809056,1994.2,1993.9,85.8696]
[1617344407520,0.94247724,1994.0,1993.9,85.8696]
[1617344407719,0.94247724,1994.0,1993.9,83.8696]
[1617344408119,0.94247724,1994.0,1993.9,86.77655]
[1617344409721,1.17835465,1994.1,1993.9,86.77655]
[1617344413123,1.17847713,1994.0,1993.9,86.77655]
[1617344413424,1.17843751,1994.1,1993.9,86.77655]
[1617344418130,2.06520319,1994.3,1993.9,86.77655]
[1617344418131,1.17845553,1994.0,1993.9,86.77655]
[1617344418333,2.68205553,1994.0,1993.9,86.77655]
[1617344418532,3.56856983,1994.0,1993.9,2.90695]
[1617344418932,74.97826983,1994.0,1993.9,2.90695]
[1617344419132,73.7998143,1994.0,1993.9,2.90695]
[1617344419533,79.12489603,1994.0,1993.9,2.90695]
[1617344420538,82.03184603,1994.0,1993.9,2.90695]
[1617344420737,10.62214603,1994.0,1993.9,2.90695]
[1617344420937,5.2970643,1994.0,1993.9,71.89625]
[1617344421939,2.3901143,1994.0,1993.9,71.89625]
[1617344422139,0.8865143,1994.0,1993.9,71.89625]
[1617344422339,2.06529622,1994.1,1993.9,71.89625]
[1617344422739,2.06436796,1994.0,1993.9,71.89625]
[1617344423440,1.17784541,1994.0,1993.9,71.89625]
[1617344425646,2.06492276,1994.1,1993.9,71.89625]
[1617344429551,2.06492276,1994.1,1993.9,4.83485]
[1617344429950,1.17802355,1994.0,1993.9,4.83485]
[1617344430350,2.06450519,1994.0,1993.9,4.83485]
[1617344430550,1.17818111,1994.1,1993.9,4.83485]
[1617344430750,1.17818111,1994.1,1994.0,65.2606]
[1617344434354,2.06685796,1994.2,1994.0,65.2606]
[1617344434754,2.06685796,1994.2,1994.1,2.90695]
[1617344440160,2.06685796,1994.2,1994.1,74.85705]
[1617344440360,2.06685796,1994.2,1994.1,2.90695]
[1617344440561,2.95100325,1994.3,1994.1,2.90695]
[1617344441865,9.16445451,1994.3,1994.1,2.90695]
[1617344442065,2.95062984,1994.2,1994.1,2.90695]
[1617344442263,4.81562984,1994.2,1994.1,2.90695]
[1617344442665,5.70216106,1994.2,1994.1,2.90695]
[1617344443366,2.75153122,1994.2,1994.1,2.90695]
[1617344444969,5.70142581,1994.2,1994.1,2.90695]
[1617344445270,4.81489459,1994.2,1994.1,2.90695]
[1617344445670,5.70143281,1994.2,1993.2,86.8109]
[1617344445871,0.707639,1993.3,1993.2,86.8109]
[1617344446677,0.94349744,1993.4,1993.2,86.8109]
[1617344446873,0.94349744,1993.4,1993.3,2.90695]
[1617344447275,0.94349744,1993.4,1993.3,4.90695]
[1617344447476,0.94364754,1993.5,1993.3,4.90695]
[1617344447877,0.94364754,1993.5,1993.3,34.90695]
[1617344448576,0.7078151,1993.4,1993.3,34.90695]
[1617344450678,0.7078151,1993.4,1993.3,4.90695]
[1617344451278,0.94372927,1993.5,1993.3,2.90695]
[1617344453981,0.94372927,1993.5,1993.2,58.8109]
[1617344454581,0.70754522,1993.3,1993.2,58.8109]
[1617344455081,0.70754522,1993.3,1993.2,61.71785]
[1617344456182,0.70754522,1993.3,1993.2,59.71785]
[1617344456386,0.94333942,1993.4,1993.2,89.71785]
[1617344457183,0.94333942,1993.4,1993.3,2.0]
[1617344457383,0.88654336,1994.1,1993.3,2.0]
[1617344457384,0.94334325,1993.5,1993.3,2.0]
[1617344457785,0.88653005,1993.4,1993.3,2.0]
[1617344458185,0.94334325,1993.5,1993.3,32.0]
[1617344459285,0.94334325,1993.5,1993.4,2.90695]
[1617344462888,0.94334325,1993.5,1993.3,32.0]
[1617344463488,0.94334325,1993.5,1993.4,2.90695]
[1617344470296,0.94334325,1993.5,1993.4,4.24045]
[1617344472500,0.94334325,1993.5,1993.4,2.90695]
[1617344480708,1.17917906,1993.7,1993.4,2.90695]
[1617344481309,0.94356092,1993.5,1993.4,2.90695]
[1617344481710,1.1793747,1993.6,1993.4,2.90695]
[1617344483314,0.94361373,1993.5,1993.4,2.90695]
[1617344483712,1.17951783,1993.6,1993.4,2.90695]
[1617344484112,0.88648232,1993.5,1993.4,2.90695]
[1617344484512,1.17951783,1993.6,1993.4,2.90695]
[1617344491518,1.17951783,1993.6,1993.4,2.88970993]
[1617344492623,0.9440605,1993.5,1993.4,2.88970993]
[1617344493222,1.8305403,1993.5,1993.4,2.88970993]
[1617344493622,0.9440605,1993.5,1993.4,2.88970993]
[1617344496224,0.9440605,1993.5,1993.4,3.88320993]
[1617344496424,0.9440605,1993.5,1993.4,2.88970993]
[1617344497224,1.18008929,1993.6,1993.4,2.88970993]
[1617344497423,1.18008929,1993.6,1993.4,3.89470993]
[1617344497826,0.88648838,1993.5,1993.4,3.89470993]
[1617344498225,1.18008929,1993.6,1993.4,3.89470993]
[1617344498624,0.88649059,1993.5,1993.4,3.89470993]
[1617344498824,1.18008929,1993.6,1993.5,56.4832]
[1617344501529,2.06909032,1993.7,1993.5,56.4832]
[1617344501730,2.06909032,1993.7,1993.6,2.90695]
[1617344517552,63.24449032,1993.7,1993.6,2.90695]
[1617344517953,69.47910507,1993.7,1993.6,2.90695]
[1617344521157,8.30370507,1993.7,1993.6,2.90695]
[1617344521557,2.95465552,1993.7,1992.2,103.9142]
[1617344521759,83.2992,1993.1,1992.2,103.9142]
[1617344521959,83.2992,1993.1,1993.0,2.90695]
[1617344522358,86.5495803,1993.1,1993.0,2.90695]
[1617344522957,3.2503803,1993.1,1993.0,2.90695]
[1617344523157,2.06882319,1993.1,1993.0,2.90695]
[1617344523357,2.07076114,1993.2,1993.0,2.90695]
[1617344523557,2.07076114,1993.2,1993.1,57.4725]
[1617344523758,2.957429,1993.2,1993.1,57.4725]
[1617344524160,0.88666786,1993.2,1993.1,57.4725]
[1617344525161,2.06631889,1993.2,1993.1,57.4725]
[1617344525361,1.17965103,1993.2,1993.1,57.4725]
[1617344527264,4.97584818,1993.3,1993.1,57.4725]
[1617344527265,6.15547728,1993.3,1993.1,57.4725]
[1617344527763,0.88665677,1993.2,1993.1,57.4725]
[1617344528363,0.88665677,1993.2,1993.0,2.90695]
[1617344528964,0.94368677,1993.1,1993.0,2.90695]
[1617344529568,0.94366236,1993.2,1993.0,2.90695]
[1617344529766,0.94366236,1993.2,1993.0,4.14235]
[1617344529966,0.9204198,1993.2,1993.0,4.14235]
[1617344530366,0.88659403,1993.1,1993.0,4.14235]
[1617344530767,0.9204198,1993.2,1993.0,4.14235]
[1617344531167,0.70772572,1993.1,1993.0,4.14235]
[1617344531570,0.8866117,1993.1,1993.0,4.14235]
[1617344531969,1.17956191,1993.4,1993.0,4.14235]
[1617344532169,1.17956191,1993.4,1993.0,34.14235]
[1617344532581,0.707711,1993.2,1993.0,35.13815]
[1617344533169,0.707711,1993.2,1993.0,37.13815]
[1617344533370,0.47179404,1993.1,1993.0,37.13815]
[1617344533571,0.70769105,1993.3,1993.0,37.13815]
[1617344534070,0.70769105,1993.3,1993.2,2.90695]
[1617344539280,0.70766568,1993.4,1993.3,62.0862]
[1617344539879,0.70766568,1993.4,1993.2,2.90695]
[1617344541080,0.70765771,1993.3,1993.2,2.90695]
[1617344542482,0.70762908,1993.4,1993.2,2.90695]
[1617344542683,0.70762908,1993.4,1993.3,61.5346]
[1617344546389,0.70758569,1993.5,1993.3,61.5346]
[1617344546590,0.70758569,1993.5,1993.4,2.90695]
[1617344547191,1.17932594,1993.8,1993.4,2.90695]
[1617344547492,0.88643888,1993.5,1993.4,2.90695]
[1617344547691,0.88643888,1993.5,1993.4,3.90105]
[1617344547893,1.17932594,1993.8,1993.4,3.90105]
[1617344548393,0.88644244,1993.5,1993.4,3.90105]
[1617344548593,1.17932594,1993.8,1993.4,3.90105]
[1617344548793,1.17932594,1993.8,1993.7,2.90695]
[1617344559405,2.18442594,1993.8,1993.7,2.90695]
[1617344559606,1.17932594,1993.8,1993.7,2.90695]
[1617344566917,2.06673024,1993.9,1993.7,2.90695]
[1617344567721,1.17930992,1993.8,1993.7,2.90695]
[1617344568119,0.88642535,1993.8,1993.7,2.90695]
[1617344568320,2.06694998,1993.9,1993.7,2.90695]
[1617344568721,0.88643082,1993.8,1993.7,2.90695]
[1617344569123,2.06694998,1993.9,1993.7,2.90695]
[1617344569824,1.17929969,1993.8,1993.7,2.90695]
[1617344572423,2.06672473,1993.9,1993.7,2.90695]
[1617344576226,1.17930221,1993.8,1993.7,2.90695]
[1617344576426,2.06672473,1993.9,1993.7,2.90695]
[1617344577626,2.06672473,1993.9,1993.8,83.1902]
[1617344578426,2.06673845,1994.0,1993.8,83.1902]
[1617344578727,2.95317651,1993.9,1993.8,83.1902]
[1617344579127,2.06673381,1993.9,1993.8,83.1902]
[1617344582534,2.06670235,1994.0,1993.8,83.1902]
[1617344582734,2.06670235,1994.0,1993.8,84.5742]
[1617344582935,2.95310307,1993.9,1993.8,1.384]
[1617344583337,2.06667076,1994.0,1993.9,74.5914]
[1617344583536,0.88642268,1993.9,1993.8,1.384]
[1617344583937,8.29336204,1994.0,1993.8,1.384]
[1617344584236,0.88642489,1993.9,1993.8,1.384]
[1617344584436,0.88642489,1993.9,1993.7,77.51965]
[1617344584636,8.29336163,1994.0,1993.7,77.51965]
[1617344585036,1.17928346,1993.8,1993.7,77.51965]
[1617344588341,1.17928346,1993.8,1993.7,2.90695]
[1617344589141,2.06573474,1993.9,1993.8,79.6019]
[1617344589343,2.06573474,1993.9,1993.8,80.8351]
[1617344589540,1.17929728,1993.9,1993.8,80.8351]
[1617344591445,1.17929728,1993.9,1993.8,1.2332]
[1617344591947,1.17901863,1994.0,1993.8,1.2332]
[1617344592145,1.17901863,1994.0,1993.9,80.361]
[1617344592646,2.06624593,1994.1,1993.9,80.361]
[1617344593145,1.17902654,1994.0,1993.9,80.361]
[1617344593346,0.88645847,1994.0,1993.9,83.26795]
[1617344593745,2.06624967,1994.1,1993.9,83.26795]
[1617344599350,1.17902479,1994.0,1993.9,83.26795]
[1617344599750,2.06623655,1994.1,1993.9,83.26795]
[1617344600851,2.06623655,1994.1,1993.9,80.361]
[1617344601050,1.17902439,1994.0,1993.9,80.361]
[1617344601451,2.06548505,1994.0,1993.9,80.361]
[1617344601954,1.17902439,1994.0,1993.9,80.361]
[1617344602553,1.17902439,1994.0,1993.9,83.26795]
[1617344602853,1.17902439,1994.0,1993.9,80.361]
[1617344604255,1.17877463,1994.1,1993.9,80.361]
[1617344604454,1.17877463,1994.1,1994.0,2.90695]
[1617344605557,1.17877463,1994.1,1994.0,3.92455]
[1617344606057,1.17877463,1994.1,1994.0,2.90695]
[1617344607160,1.17877463,1994.1,1994.0,3.90575]
[1617344607861,1.17877463,1994.1,1994.0,2.90695]
[1617344609867,2.06584097,1994.2,1994.0,2.90695]
[1617344610066,2.06524068,1994.1,1994.0,2.90695]
[1617344610966,2.06524068,1994.1,1994.0,3.91355]
[1617344611166,1.1788039,1994.1,1994.0,3.91355]
[1617344611466,1.1788039,1994.1,1994.0,2.90695]
[1617344612866,2.06583417,1994.2,1994.0,2.90695]
[1617344613568,1.17879017,1994.1,1994.0,2.90695]
[1617344613773,1.17879017,1994.1,1994.0,3.90645]
[1617344613968,2.95413276,1994.2,1994.0,2.90695]
[1617344614974,2.06855446,1994.1,1994.0,2.90695]
[1617344615772,2.95382941,1994.2,1994.0,2.90695]
[1617344616670,2.95382941,1994.2,1994.0,4.62655]
[1617344616871,5.02060372,1994.4,1994.0,4.62655]
[1617344616872,2.06854243,1994.1,1994.0,4.62655]
[1617344617271,2.95495902,1994.1,1994.0,4.62655]
[1617344617672,2.06854243,1994.1,1994.0,4.62655]
[1617344618173,2.95383054,1994.2,1994.0,4.62655]
[1617344618372,2.95501145,1994.1,1994.0,4.62655]
[1617344618773,2.06857832,1994.1,1994.0,4.62655]
[1617344619172,2.95500288,1994.1,1994.0,4.62655]
[1617344619576,2.06857832,1994.1,1994.0,4.62655]
[1617344624678,2.95448366,1994.2,1994.0,4.62655]
[1617344625379,2.06902706,1994.1,1994.0,4.62655]
[1617344627279,2.0683239,1994.4,1994.0,4.62655]
[1617344627280,2.06841474,1994.2,1994.0,4.62655]
[1617344627478,0.88641028,1994.1,1994.0,4.62655]
[1617344627881,2.06841474,1994.2,1994.0,4.62655]
[1617344631184,1.18020447,1994.1,1994.0,4.62655]
[1617344633485,1.18019165,1994.2,1994.0,4.62655]
[1617344634287,1.18019165,1994.2,1994.0,5.62035]
[1617344634487,1.18019165,1994.2,1994.0,4.62655]
[1617344635488,1.18019165,1994.2,1994.0,5.62315]
[1617344635690,1.18019165,1994.2,1994.0,4.62655]
[1617344636490,0.94306654,1994.2,1994.0,4.62655]
[1617344638110,0.94309389,1994.1,1994.0,4.62655]
[1617344638493,1.82944396,1994.1,1994.0,4.62655]
[1617344638893,0.94309389,1994.1,1994.0,4.62655]
[1617344639094,0.88634095,1994.1,1994.0,4.62655]
[1617344639498,0.94307953,1994.2,1994.0,4.62655]
[1617344640294,0.94310062,1994.1,1994.0,4.62655]
[1617344641501,0.94306321,1994.2,1994.0,34.62655]
[1617344641900,0.88632135,1994.1,1994.0,34.62655]
[1617344642300,0.94306321,1994.2,1994.0,34.62655]
[1617344644403,0.70728522,1994.1,1994.0,34.62655]
[1617344646902,0.70728522,1994.1,1994.0,35.64255]
[1617344647102,0.70674574,1994.2,1994.0,35.64255]
[1617344647302,0.70674574,1994.2,1994.0,34.62655]
[1617344647502,0.70672699,1994.3,1994.0,34.62655]
[1617344647702,0.70673938,1994.2,1994.0,34.62655]
[1617344648102,1.59300572,1994.2,1994.0,34.62655]
[1617344648503,0.70673938,1994.2,1994.0,34.62655]
[1617344649502,0.70673938,1994.2,1994.0,36.62655]
[1617344650402,0.70673938,1994.2,1994.0,37.63195]
[1617344650601,0.70673938,1994.2,1994.0,33.7196]
[1617344651002,74.06497471,1995.1,1994.4,71.0085]
[1617344651202,74.06497471,1995.1,1995.0,2.90695]
[1617344651402,76.63597471,1995.1,1995.0,2.90695]
[1617344652303,13.06937471,1995.1,1995.0,2.90695]
[1617344653302,13.06937471,1995.1,1995.0,4.66305]
[1617344653503,95.97647471,1995.1,1995.0,4.66305]
[1617344653903,85.4781,1995.1,1995.0,4.66305]
[1617344656210,2.571,1995.1,1995.0,4.66305]
[1617344659613,2.571,1995.1,1995.0,63.65505]
[1617344661927,4.63389814,1995.1,1995.0,63.65505]
[1617344662820,2.571,1995.1,1995.0,63.65505]
[1617344664323,2.571,1995.1,1995.0,4.66305]
[1617344674126,2.571,1995.1,1995.0,2.90695]
[1617344675032,3.74751258,1995.1,1995.0,2.90695]
[1617344675832,2.571,1995.1,1995.0,2.90695]
[1617344676633,3.74749805,1995.1,1995.0,2.90695]
[1617344676833,2.571,1995.1,1995.0,2.90695]
[1617344677234,3.74750846,1995.1,1995.0,2.90695]
[1617344678636,2.571,1995.1,1995.0,2.90695]
[1617344682744,4.63312948,1995.1,1995.0,2.90695]
[1617344684546,2.571,1995.1,1995.0,2.90695]
[1617344689955,3.74764201,1995.1,1995.0,2.90695]
[1617344693361,2.571,1995.1,1995.0,2.90695]
[1617344695561,4.63390785,1995.1,1995.0,2.90695]
[1617344696363,2.571,1995.1,1995.0,2.90695]
[1617344696763,4.63385879,1995.1,1995.0,2.90695]
[1617344700767,6.22135879,1995.1,1995.0,2.90695]
[1617344701166,7.10447652,1995.1,1995.0,2.90695]
[1617344701566,67.3356,1995.0,1994.8,2.90695]
[1617344701766,69.3356,1995.0,1994.8,2.90695]
[1617344701968,67.3356,1995.0,1994.8,2.90695]
[1617344702369,5.97059967,1994.9,1994.8,2.90695]
[1617344702972,8.9174552,1994.9,1994.8,2.90695]
[1617344703575,11.8244052,1994.9,1994.8,2.90695]
[1617344704377,8.87754967,1994.9,1994.8,2.90695]
[1617344705277,5.85539101,1994.9,1994.8,2.90695]
[1617344705677,11.83776123,1994.9,1994.8,2.90695]
[1617344708883,8.88932022,1994.9,1994.8,2.90695]
[1617344709484,5.98237022,1994.9,1994.8,2.90695]
[1617344710286,2.94836244,1995.0,1994.8,2.90695]
[1617344710486,2.94836244,1995.0,1994.8,4.19185]
[1617344710687,2.90181773,1994.9,1994.8,4.19185]
[1617344710988,2.06467014,1994.9,1994.8,4.19185]
[1617344711387,2.06455439,1995.0,1994.9,59.3966]
[1617344711988,2.06440913,1995.1,1994.9,59.3966]
[1617344712387,2.02672744,1995.0,1994.9,59.3966]
[1617344712789,1.17796893,1995.0,1994.9,59.3966]
[1617344714191,1.17758925,1995.1,1994.9,59.3966]
[1617344715492,0.94207292,1995.0,1994.9,59.3966]
[1617344715992,1.17842634,1995.0,1994.9,59.3966]
[1617344725901,1.17842634,1995.0,1994.8,4.19185]
[1617344728103,1.17857016,1994.9,1994.8,4.19185]
[1617344728504,2.04053376,1994.9,1994.8,4.19185]
[1617344728905,1.17852325,1995.0,1994.8,34.19185]
[1617344729305,1.17844331,1995.1,1995.0,68.3815]
[1617344729505,2.06522191,1995.3,1995.1,28.82155669]
[1617344729708,2.06514137,1995.4,1995.2,2.90695]
[1617344729907,2.06514137,1995.4,1995.2,4.24365]
[1617344730313,2.06510507,1995.5,1995.2,4.24365]
[1617344730908,2.06510507,1995.5,1995.2,5.23935]
[1617344731911,2.06510507,1995.5,1995.4,2.90695]
[1617344736117,2.06339844,1995.6,1995.4,2.90695]
[1617344736517,4.63438877,1995.7,1995.4,2.90695]
[1617344737817,4.63438877,1995.7,1995.6,2.90695]
[1617344738017,4.63438877,1995.7,1995.6,4.43025]
[1617344739221,4.63438877,1995.7,1995.6,83.17905]
[1617344740720,4.63438877,1995.7,1995.6,4.43025]
[1617344740921,2.571,1995.7,1995.6,4.43025]
[1617344741120,2.06336077,1995.8,1995.6,4.43025]
[1617344744328,2.06336077,1995.8,1995.6,34.43025]
[1617344746136,2.06332416,1995.9,1995.6,34.43025]
[1617344746533,2.06332416,1995.9,1995.6,4.43025]
[1617344746937,10.78288928,1996.3,1995.6,4.43025]
[1617344746938,2.06127557,1996.0,1995.6,4.43025]
[1617344747730,2.06127557,1996.0,1995.6,34.43025]
[1617344747931,2.06127557,1996.0,1995.9,2.90695]
[1617344748729,2.06093796,1996.1,1995.9,2.90695]
[1617344749030,2.06094622,1996.0,1995.9,2.90695]
[1617344750436,2.0609438,1996.1,1995.9,2.90695]
[1617344757845,1.17536768,1996.0,1995.9,2.90695]
[1617344758043,2.05986286,1996.1,1995.9,2.90695]
[1617344758443,1.17539564,1996.0,1995.9,2.90695]
[1617344760344,1.17498193,1996.1,1995.9,2.90695]
[1617344760746,7.53710583,1996.3,1995.9,2.90695]
[1617344760747,1.17503162,1996.0,1995.9,2.90695]
[1617344761146,1.17503162,1996.0,1995.9,81.44475]
[1617344763149,1.17503162,1996.0,1995.9,2.90695]
[1617344763552,1.17497344,1996.1,1996.0,60.0764]
[1617344763749,1.17497344,1996.1,1996.0,61.8738]
[1617344765855,1.17497344,1996.1,1996.0,1.7974]
[1617344768771,2.06027633,1996.2,1996.0,1.7974]
[1617344768969,0.88582401,1996.1,1995.9,78.92725]
[1617344769363,0.93952531,1996.0,1995.9,78.92725]
[1617344770666,0.93952531,1996.0,1995.9,2.90695]
[1617344771469,0.93952531,1996.0,1995.9,70.04495]
[1617344776075,1.17434502,1996.1,1995.9,70.04495]
[1617344776275,0.93946911,1996.0,1995.9,70.04495]
[1617344776676,1.17434259,1996.1,1995.9,70.04495]
[1617344776976,0.88584559,1996.0,1995.9,70.04495]
[1617344777476,1.17434259,1996.1,1995.9,70.04495]
[1617344779579,0.88585144,1996.2,1995.9,70.04495]
[1617344779580,1.17444942,1996.0,1995.9,70.04495]
[1617344780884,2.06035643,1996.0,1995.9,2.90695]
[1617344781284,0.88590701,1996.0,1995.9,2.90695]
[1617344781884,67.99980701,1996.0,1995.9,2.90695]
[1617344782284,73.30651174,1996.0,1995.9,2.90695]
[1617344787288,6.19261174,1996.0,1995.9,85.70735]
[1617344787889,2.06059051,1996.0,1995.9,85.70735]
[1617344791095,0.88590701,1996.0,1995.9,85.70735]
[1617344792194,3.83129532,1996.0,1995.9,85.70735]
[1617344792997,2.94538831,1996.0,1995.9,85.70735]
[1617344793700,2.94537545,1996.1,1995.9,85.70735]
[1617344794999,2.9453936,1996.0,1995.9,85.70735]
[1617344795399,2.94538536,1996.1,1995.9,86.71445]
[1617344795600,2.94538536,1996.1,1995.9,85.70735]
[1617344795800,2.94543328,1996.0,1995.9,85.70735]
[1617344796600,3.94843328,1996.0,1995.9,85.70735]
[1617344796800,2.94543328,1996.0,1995.9,85.70735]
[1617344797000,4.12248941,1996.1,1995.9,85.70735]
[1617344797201,0.88594876,1996.0,1995.9,85.70735]
[1617344797601,2.0,1996.0,1995.9,85.70735]
[1617344797801,4.12248941,1996.1,1995.9,85.70735]
[1617344798001,0.88596673,1996.0,1995.9,85.70735]
[1617344798301,4.12248941,1996.1,1995.9,85.70735]
[1617344798701,0.88596586,1996.0,1995.9,85.70735]
[1617344799101,4.12248941,1996.1,1995.9,85.70735]
[1617344800201,2.90695,1996.0,1995.9,85.70735]
[1617344801003,3.79291862,1996.0,1995.9,85.70735]
[1617344801204,3.79291862,1996.0,1995.9,86.70945]
[1617344801404,3.79291862,1996.0,1995.9,85.70735]
[1617344801807,6.73836832,1996.0,1995.9,85.70735]
[1617344807011,3.79291862,1996.0,1995.9,85.70735]
[1617344811015,7.91809071,1996.0,1995.9,85.70735]
[1617344814819,6.19634135,1996.0,1995.9,85.70735]
[1617344815218,5.31037273,1996.0,1995.9,85.70735]
[1617344815520,6.19633526,1996.0,1995.9,85.70735]
[1617344816022,5.31037273,1996.0,1995.9,85.70735]
[1617344816421,8.21732273,1996.0,1995.9,82.8004]
[1617344816622,8.21732273,1996.0,1993.9,2.0]
[1617344816623,2.90695,1996.0,1993.9,2.0]
[1617344816824,76.8069,1995.7,1994.9,76.8069]
[1617344817025,1.17958551,1995.0,1994.9,76.8069]
[1617344817425,2.06718752,1995.1,1994.9,76.8069]
[1617344817826,2.95326708,1995.1,1994.9,76.8069]
[1617344818226,2.06723092,1995.0,1994.9,76.8069]
[1617344818426,2.06723092,1995.0,1994.9,79.71385]
[1617344818827,2.95335104,1995.0,1994.9,79.71385]
[1617344819227,2.06723092,1995.0,1994.9,79.71385]
[1617344819428,2.95335553,1995.0,1994.9,79.71385]
[1617344819827,2.06723092,1995.0,1994.9,79.71385]
[1617344820527,0.88612853,1995.0,1994.9,79.71385]
[1617344821027,2.95342062,1995.0,1994.9,79.71385]
[1617344822727,2.06729142,1995.1,1994.9,79.71385]
[1617344823828,2.0673285,1995.0,1994.9,79.71385]
[1617344824228,1.17852818,1995.0,1994.9,79.71385]
[1617344824731,2.06534702,1995.1,1994.9,79.71385]
[1617344825129,1.17851946,1995.0,1994.9,79.71385]
[1617344825329,2.06463721,1995.0,1994.9,79.71385]
[1617344825729,2.06536599,1995.1,1994.9,79.71385]
[1617344826131,1.17846226,1995.0,1994.9,79.71385]
[1617344826432,2.06527428,1995.1,1994.9,79.71385]
[1617344828532,4.97222428,1995.1,1994.9,79.71385]
[1617344828732,2.06536202,1995.0,1994.9,79.71385]
[1617344829137,2.95153696,1995.0,1994.9,79.71385]
[1617344829533,0.88617494,1995.0,1994.9,79.71385]
[1617344832546,0.88617494,1995.0,1994.9,80.70555]
[1617344832747,0.88617494,1995.0,1994.9,79.71385]
[1617344834242,0.88617494,1995.0,1994.9,80.93465]
[1617344834941,2.0637604,1995.0,1994.9,80.93465]
[1617344838547,0.88617494,1995.0,1994.9,80.93465]
[1617344839048,0.88617494,1995.0,1994.9,4.12775]
[1617344839650,1.17738362,1995.1,1994.9,4.12775]
[1617344840048,0.94182517,1995.0,1994.9,4.12775]
[1617344840258,0.88609062,1995.0,1994.9,4.12775]
[1617344840649,0.94182959,1995.1,1994.9,4.12775]
[1617344841055,0.88609417,1995.0,1994.9,4.12775]
[1617344841453,0.94182959,1995.1,1994.9,4.12775]
[1617344841852,0.94184518,1995.0,1994.9,4.12775]
[1617344842252,0.9418478,1995.1,1995.0,64.837]
[1617344843251,1.17731927,1995.2,1995.0,64.837]
[1617344843651,0.88611388,1995.1,1995.0,64.837]
[1617344844052,1.17731927,1995.2,1995.0,64.837]
[1617344844754,1.17731927,1995.2,1995.1,2.90695]
[1617344846155,1.17729442,1995.3,1995.1,2.90695]
[1617344848855,1.17743627,1995.2,1995.1,2.90695]
[1617344851459,2.06361151,1995.2,1995.1,2.90695]
[1617344857466,0.88617524,1995.2,1995.1,2.90695]
[1617344857866,2.0636793,1995.2,1995.0,64.837]
[1617344858465,1.17750406,1995.2,1995.0,64.837]
[1617344858865,1.17794131,1995.1,1995.0,64.837]